bitfinex-derivatives/quotes_BTCF0:USTF0_20250828
["timestamp","ask_amount","ask_price","bid_price","bid_amount"]
[1756396535757,0.138536,112550.0,112540.0,1.52728053]
[1756396536153,0.0497,112550.0,112540.0,1.52728053]
[1756396536656,0.02019,112550.0,112540.0,1.52728053]
[1756396537863,0.1090259,112550.0,112540.0,1.52728053]
[1756396538462,0.1385359,112550.0,112540.0,1.04922357]
[1756396538656,0.1385359,112550.0,112540.0,1.52728053]
[1756396539467,0.1385359,112550.0,112540.0,0.56699663]
[1756396539468,0.4993359,112550.0,112540.0,0.56699663]
[1756396539661,0.4993359,112550.0,112540.0,1.43759663]
[1756396540559,0.7493359,112550.0,112540.0,0.95953967]
[1756396540956,0.7503359,112550.0,112540.0,0.95953967]
[1756396542956,0.7513359,112550.0,112540.0,1.04838347]
[1756396543156,0.7513359,112550.0,112540.0,1.52644043]
[1756396544463,0.38299,112550.0,112540.0,1.52644043]
[1756396544666,0.002,112550.0,112540.0,2.13724043]
[1756396546157,0.001,112550.0,112540.0,2.13724043]
[1756396546354,0.001,112550.0,112540.0,2.13824043]
[1756396546955,0.4791354,112570.0,112540.0,2.13824043]
[1756396547152,0.4791354,112570.0,112560.0,0.47805696]
[1756396547153,0.52347461,112570.0,112560.0,0.47805696]
[1756396547355,0.52347461,112570.0,112560.0,1.34785696]
[1756396547563,0.4993254,112570.0,112560.0,1.34785696]
[1756396548163,0.52348003,112570.0,112560.0,1.34785696]
[1756396548663,0.52448003,112570.0,112560.0,1.34785696]
[1756396549371,0.47478003,112570.0,112560.0,1.36756452]
[1756396549570,0.38595463,112570.0,112560.0,1.45639252]
[1756396549771,0.3618,112570.0,112560.0,1.45639252]
[1756396550171,0.4115,112570.0,112560.0,1.36756452]
[1756396550573,0.38299,112570.0,112560.0,1.36756452]
[1756396550764,0.38299,112570.0,112560.0,1.45639252]
[1756396552272,0.02219,112570.0,112560.0,2.29524948]
[1756396553767,0.0517,112570.0,112560.0,2.29524948]
[1756396553972,0.0517,112570.0,112560.0,1.33913556]
[1756396554176,0.0517,112570.0,112560.0,1.25030756]
[1756396554472,0.0517,112570.0,112560.0,1.72836452]
[1756396554679,0.0517,112570.0,112560.0,1.25030756]
[1756396554874,0.0517,112570.0,112560.0,1.72836452]
[1756396556473,0.0517,112570.0,112560.0,1.36756452]
[1756396556976,0.1405201,112570.0,112560.0,1.36756452]
[1756396560175,0.1110101,112570.0,112560.0,1.45639102]
[1756396560375,0.02219,112570.0,112560.0,1.93444798]
[1756396560575,0.002,112570.0,112560.0,1.93444798]
[1756396561165,0.002,112570.0,112560.0,0.97833406]
[1756396561381,0.002,112570.0,112560.0,1.45639102]
[1756396561574,0.002,112570.0,112560.0,1.93444798]
[1756396562874,0.02178,112570.0,112560.0,1.45639102]
[1756396563180,0.05066,112570.0,112560.0,0.88950756]
[1756396563372,0.05066,112570.0,112560.0,1.45639102]
[1756396563681,0.05066,112570.0,112560.0,1.36756452]
[1756396564167,0.05066,112570.0,112560.0,1.45639102]
[1756396565076,0.1394786,112570.0,112560.0,1.36756452]
[1756396565880,0.1394786,112570.0,112560.0,1.45639092]
[1756396566275,0.1105986,112570.0,112560.0,1.45639092]
[1756396566482,0.002,112570.0,112560.0,1.45639092]
[1756396566680,0.002,112570.0,112560.0,1.81719092]
[1756396567181,0.002,112570.0,112560.0,2.29524788]
[1756396568483,0.002,112570.0,112560.0,1.81719092]
[1756396569687,0.03088,112570.0,112560.0,1.81719092]
[1756396570582,0.002,112570.0,112560.0,1.81719092]
[1756396571182,0.002,112570.0,112560.0,2.29524788]
[1756396573183,0.0908185,112570.0,112560.0,2.29524788]
[1756396574691,0.0908185,112570.0,112560.0,1.81719092]
[1756396575384,0.0908185,112570.0,112560.0,1.95719092]
[1756396579188,0.0908185,112570.0,112560.0,2.43524788]
[1756396579977,0.002,112570.0,112560.0,2.68524788]
[1756396580181,0.06649103,112600.0,112580.0,0.0888039]
[1756396580483,0.04866,112610.0,112600.0,0.0887949]
[1756396580788,0.01978,112610.0,112600.0,0.56685186]
[1756396581282,0.04866,112610.0,112600.0,0.58697749]
[1756396582175,0.01978,112610.0,112600.0,0.58697749]
[1756396582481,0.006,112610.0,112600.0,0.72697749]
[1756396582680,0.03078,112610.0,112600.0,0.72697749]
[1756396583283,0.03078,112610.0,112600.0,0.79962369]
[1756396583684,0.03078,112610.0,112600.0,0.80858263]
[1756396583887,0.02578,112610.0,112600.0,0.80858263]
[1756396584282,0.02678,112610.0,112600.0,0.80858263]
[1756396584883,0.02078,112610.0,112600.0,0.80858263]
[1756396585078,0.05066,112610.0,112600.0,0.33052567]
[1756396585284,0.02178,112610.0,112600.0,0.80858263]
[1756396585684,0.1105702,112610.0,112600.0,0.80858263]
[1756396587486,0.02178,112610.0,112600.0,1.16938263]
[1756396587692,0.002,112610.0,112600.0,1.16938263]
[1756396588491,0.02178,112610.0,112600.0,0.69132567]
[1756396588691,0.02178,112610.0,112600.0,1.16938263]
[1756396588884,0.002,112610.0,112600.0,1.16938263]
[1756396589991,0.002,112610.0,112600.0,1.89743959]
[1756396590192,0.40978163,112630.0,112620.0,0.56683606]
[1756396590193,0.42921163,112630.0,112620.0,0.56683606]
[1756396590388,0.42921163,112630.0,112620.0,0.87504]
[1756396590582,0.42921163,112630.0,112620.0,1.44187606]
[1756396591792,0.43221163,112630.0,112620.0,1.44187606]
[1756396592490,0.43521163,112630.0,112620.0,1.44187606]
[1756396593082,0.02399163,112630.0,112620.0,2.05267606]
[1756396594385,0.02399163,112630.0,112620.0,2.05227606]
[1756396597794,0.006,112630.0,112620.0,1.5742191]
[1756396597996,0.006,112630.0,112620.0,2.05227606]
[1756396598796,0.01943,112650.0,112630.0,0.0887711]
[1756396598996,0.41122,112660.0,112640.0,1.92873135]
[1756396599195,0.41122,112660.0,112650.0,0.47805696]
[1756396599391,0.41122,112660.0,112650.0,0.61805696]
[1756396599784,0.41122,112660.0,112650.0,0.14]
[1756396600289,0.41122,112660.0,112650.0,0.61805696]
[1756396600290,0.05042,112660.0,112650.0,0.61805696]
[1756396600796,0.05042,112660.0,112650.0,0.70681266]
[1756396601000,0.05042,112660.0,112650.0,0.71551272]
[1756396601489,0.8568799,112680.0,112650.0,0.71551272]
[1756396601490,0.42924294,112680.0,112660.0,0.0887478]
[1756396601791,0.05042,112670.0,112660.0,0.9623878]
[1756396601998,0.05042,112670.0,112660.0,1.45336286]
[1756396602398,0.05042,112670.0,112660.0,0.9753059]
[1756396602701,0.05042,112670.0,112660.0,1.45336286]
[1756396605300,0.01943,112670.0,112660.0,0.9753059]
[1756396605597,0.4999576,112680.0,112660.0,1.45336286]
[1756396605803,0.4999576,112680.0,112660.0,0.9753059]
[1756396605999,0.03099,112670.0,112660.0,1.04597526]
[1756396606303,0.05042,112680.0,112670.0,0.0887401]
[1756396606504,0.1391522,112680.0,112670.0,0.57970755]
[1756396607104,0.1431522,112680.0,112670.0,0.57970727]
[1756396607804,0.1391522,112680.0,112670.0,0.57970727]
[1756396608004,0.1421522,112680.0,112670.0,0.57970727]
[1756396608200,0.1431522,112680.0,112670.0,0.57970727]
[1756396610612,0.1431522,112680.0,112670.0,0.10165031]
[1756396610812,0.1431522,112680.0,112670.0,0.57970727]
[1756396611208,0.1431522,112680.0,112670.0,0.56679706]
[1756396611910,0.1431522,112680.0,112670.0,0.62679706]
[1756396612112,0.1121622,112680.0,112670.0,0.62679706]
[1756396612302,0.1111622,112680.0,112670.0,0.62679706]
[1756396612506,0.1421522,112680.0,112670.0,0.62679706]
[1756396612701,0.1401522,112680.0,112670.0,0.62679706]
[1756396612915,0.1431522,112680.0,112670.0,0.62679706]
[1756396613318,0.1121622,112680.0,112670.0,0.62679706]
[1756396613517,0.1431522,112680.0,112670.0,0.62679706]
[1756396614116,0.1431522,112680.0,112670.0,0.1487401]
[1756396614518,0.1431522,112680.0,112670.0,0.62679706]
[1756396615419,0.16659264,112680.0,112670.0,0.62679706]
[1756396615621,0.52739264,112680.0,112670.0,0.06]
[1756396615819,0.52739264,112680.0,112670.0,0.62679686]
[1756396618023,0.52739264,112680.0,112670.0,0.1487399]
[1756396618320,0.52739264,112680.0,112670.0,0.62679686]
[1756396618718,0.52739264,112680.0,112670.0,0.06]
[1756396618920,0.1391599,112670.0,112660.0,0.54872632]
[1756396619108,0.52342766,112670.0,112660.0,0.93302936]
[1756396619412,0.77342766,112670.0,112660.0,1.42916476]
[1756396619612,0.77342766,112670.0,112660.0,1.34041696]
[1756396619818,0.77342766,112670.0,112660.0,1.41061061]
[1756396620321,0.77442766,112670.0,112660.0,1.49935841]
[1756396620517,0.77542766,112670.0,112660.0,1.49935841]
[1756396620717,0.43668776,112670.0,112660.0,1.49935841]
[1756396620916,0.002,112670.0,112660.0,2.25015841]
[1756396621617,0.01777988,112690.0,112670.0,0.0887379]
[1756396621816,0.01777988,112690.0,112680.0,1.42902916]
[1756396622018,0.03806988,112690.0,112680.0,1.43902916]
[1756396622322,0.04871,112690.0,112680.0,1.43902916]
[1756396622821,0.1374343,112690.0,112680.0,1.43902916]
[1756396623417,0.1374343,112690.0,112680.0,1.44002916]
[1756396623920,0.1374343,112690.0,112680.0,1.43002916]
[1756396624120,0.16094298,112690.0,112680.0,1.43002916]
[1756396624323,0.04379868,112690.0,112680.0,1.43002916]
[1756396624912,0.02350868,112690.0,112680.0,1.43002916]
[1756396625516,0.02350868,112690.0,112680.0,1.44002916]
[1756396626320,0.04379868,112690.0,112680.0,1.44002916]
[1756396626521,0.02350868,112690.0,112680.0,1.44002916]
[1756396627026,0.02350868,112690.0,112680.0,1.91808612]
[1756396627212,0.02350868,112690.0,112680.0,1.44002916]
[1756396627813,0.04379868,112690.0,112680.0,1.44002916]
[1756396628019,0.07221868,112690.0,112680.0,0.9619722]
[1756396628228,0.07221868,112690.0,112680.0,1.44002916]
[1756396628820,0.04379868,112690.0,112680.0,1.44002916]
[1756396629918,0.02350868,112690.0,112680.0,1.91808612]
[1756396630126,0.02350868,112690.0,112680.0,2.27888612]
[1756396630627,0.02350868,112690.0,112680.0,2.52888612]
[1756396630927,0.40951,112700.0,112690.0,0.0887245]
[1756396631121,0.43296978,112700.0,112690.0,0.0987245]
[1756396631327,0.43296978,112700.0,112690.0,0.56678146]
[1756396632427,0.45087203,112700.0,112690.0,0.0887245]
[1756396632625,0.45087203,112700.0,112690.0,0.56678146]
[1756396633832,0.09007203,112700.0,112690.0,0.2287245]
[1756396634033,0.09007203,112700.0,112690.0,0.70678146]
[1756396635233,0.06661225,112700.0,112690.0,0.70678146]
[1756396636234,0.06661225,112700.0,112690.0,1.06758146]
[1756396636630,0.06661225,112700.0,112690.0,0.5895245]
[1756396636832,0.1374222,112710.0,112700.0,0.0887171]
[1756396637035,0.52167159,112710.0,112700.0,1.42793406]
[1756396637727,0.52167159,112710.0,112700.0,0.9498771]
[1756396637927,0.52167159,112710.0,112700.0,1.42793406]
[1756396638135,0.43295939,112710.0,112700.0,1.42793406]
[1756396639236,0.43395939,112710.0,112700.0,1.42793406]
[1756396639539,0.43395939,112710.0,112700.0,0.9498771]
[1756396639739,0.43395939,112710.0,112700.0,1.42793406]
[1756396639938,0.41051,112710.0,112700.0,1.42793406]
[1756396640737,0.4992195,112710.0,112700.0,1.43694489]
[1756396641041,0.41051,112710.0,112700.0,1.43694489]
[1756396641440,0.41051,112710.0,112700.0,0.95888793]
[1756396641640,0.41051,112710.0,112700.0,1.43694489]
[1756396641841,0.02129,112710.0,112700.0,1.80774489]
[1756396642142,0.001,112710.0,112700.0,1.32968793]
[1756396642437,0.001,112710.0,112700.0,1.80774489]
[1756396642942,0.001,112710.0,112700.0,1.32968793]
[1756396643240,0.001,112710.0,112700.0,1.80774489]
[1756396643940,0.001,112710.0,112700.0,1.32968793]
[1756396644144,0.001,112710.0,112700.0,1.80774489]
[1756396644438,0.02942,112710.0,112700.0,0.96888823]
[1756396644640,0.06757964,112710.0,112700.0,0.96888823]
[1756396644838,0.06757964,112710.0,112700.0,1.44694519]
[1756396646740,0.06757964,112710.0,112700.0,0.96888823]
[1756396646940,0.06757964,112710.0,112700.0,1.44694519]
[1756396647343,0.03915964,112710.0,112700.0,1.44694519]
[1756396648442,0.03915964,112710.0,112700.0,1.80774519]
[1756396648644,0.88760147,112740.0,112700.0,1.80774519]
[1756396648645,0.40749423,112740.0,112700.0,2.53580215]
[1756396648943,0.53934819,112740.0,112730.0,0.47805696]
[1756396649146,0.53934819,112740.0,112730.0,1.33845696]
[1756396649147,0.51647513,112740.0,112730.0,1.33845696]
[1756396649349,0.51647513,112740.0,112730.0,1.42715076]
[1756396649743,0.51647513,112740.0,112730.0,0.8604]
[1756396650144,0.51747513,112740.0,112730.0,0.9490938]
[1756396650546,0.4992009,112740.0,112730.0,0.9490938]
[1756396651545,0.4992009,112740.0,112730.0,1.42715076]
[1756396651843,0.4992009,112740.0,112730.0,1.49682557]
[1756396652044,0.52208438,112740.0,112730.0,1.49682557]
[1756396653247,0.54016418,112740.0,112730.0,1.01876861]
[1756396653948,0.5402095,112740.0,112730.0,1.01876861]
[1756396654145,0.52208438,112740.0,112730.0,1.01876861]
[1756396654354,0.4998909,112740.0,112730.0,1.49682557]
[1756396654552,0.4998909,112740.0,112730.0,1.01876861]
[1756396654750,0.4998909,112740.0,112730.0,1.49682557]
[1756396655253,0.4998909,112740.0,112730.0,1.01876861]
[1756396655554,0.4998909,112740.0,112730.0,1.49682557]
[1756396656546,0.4988909,112740.0,112730.0,1.49682557]
[1756396657857,0.4988909,112740.0,112730.0,1.01876861]
[1756396659253,0.4988909,112740.0,112730.0,1.49682557]
[1756396659742,0.4988909,112740.0,112730.0,1.01876861]
[1756396659947,1.22694786,112740.0,112730.0,0.06967481]
[1756396660159,0.0886941,112730.0,112720.0,1.42651666]
[1756396660354,0.1178041,112730.0,112720.0,1.42651666]
[1756396661151,0.1178041,112730.0,112720.0,1.4974322]
[1756396661456,0.1178041,112730.0,112720.0,1.4984322]
[1756396661852,0.4677691,112740.0,112730.0,0.0886941]
[1756396662050,0.4968791,112740.0,112730.0,0.0886941]
[1756396662556,0.4968791,112740.0,112730.0,0.56675106]
[1756396662758,0.51468394,112740.0,112730.0,0.56675106]
[1756396663465,0.4968791,112740.0,112730.0,0.56675106]
[1756396663756,0.4968791,112740.0,112730.0,0.0886941]
[1756396663956,0.4968791,112740.0,112730.0,0.56675106]
[1756396664153,0.4968791,112740.0,112720.0,1.01937244]
[1756396664355,0.02911,112730.0,112720.0,1.01937244]
[1756396664555,0.02911,112730.0,112720.0,1.4974294]
[1756396664856,0.02911,112730.0,112720.0,1.01937244]
[1756396665156,0.04739,112730.0,112720.0,1.4974294]
[1756396665348,0.04739,112730.0,112720.0,0.15961244]
[1756396665555,0.04739,112730.0,112720.0,1.4981094]
[1756396665958,0.04739,112730.0,112720.0,1.5001094]
[1756396666751,0.04739,112730.0,112720.0,1.02205244]
[1756396666959,0.01828,112730.0,112720.0,1.5001094]
[1756396667547,0.38991,112740.0,112720.0,1.5888056]
[1756396667857,0.40819,112740.0,112730.0,0.56675106]
[1756396670260,0.4968762,112740.0,112730.0,0.56675106]
[1756396670653,0.4968762,112740.0,112730.0,0.0886941]
[1756396670850,0.4968762,112740.0,112730.0,0.56675106]
[1756396671355,0.40819,112740.0,112730.0,0.56675106]
[1756396671557,0.40215075,112740.0,112730.0,0.56675106]
[1756396671858,0.01828,112740.0,112730.0,0.92755106]
[1756396672059,0.425851,112750.0,112740.0,0.088686]
[1756396672253,0.425851,112750.0,112740.0,1.42582296]
[1756396672460,0.5145291,112750.0,112740.0,1.42582296]
[1756396672860,0.4677581,112750.0,112740.0,1.42582296]
[1756396673062,0.3608,112750.0,112740.0,1.42582296]
[1756396673665,0.38991,112750.0,112740.0,1.42582296]
[1756396674760,0.40819,112750.0,112740.0,0.947766]
[1756396674961,0.40819,112750.0,112740.0,1.42582296]
[1756396675468,0.40819,112750.0,112740.0,0.947766]
[1756396675766,0.40819,112750.0,112740.0,1.42582296]
[1756396676166,0.40819,112750.0,112740.0,0.947766]
[1756396676467,0.40819,112750.0,112740.0,1.42582276]
[1756396676659,0.40819,112750.0,112740.0,0.9477658]
[1756396677666,0.40819,112750.0,112740.0,0.85908]
[1756396678564,0.40819,112740.0,112730.0,0.9473281]
[1756396678961,0.40819,112740.0,112730.0,0.56674506]
[1756396679168,0.40819,112740.0,112730.0,0.9472881]
[1756396680269,0.85713696,112740.0,112720.0,0.07091554]
[1756396680462,0.49634696,112730.0,112710.0,0.96668821]
[1756396680760,0.04643,112720.0,112710.0,1.44474517]
[1756396681166,0.04643,112720.0,112710.0,0.96668821]
[1756396681365,0.1351316,112720.0,112710.0,0.96668821]
[1756396681563,0.1341316,112720.0,112710.0,0.96668821]
[1756396682964,0.1341316,112720.0,112710.0,1.03882354]
[1756396683561,0.1341316,112720.0,112710.0,1.04182354]
[1756396684068,0.1341316,112720.0,112710.0,1.04082354]
[1756396684770,0.1341316,112720.0,112710.0,0.18230354]
[1756396684970,0.1341316,112720.0,112710.0,0.18330354]
[1756396686373,0.1341316,112720.0,112710.0,0.18230354]
[1756396695884,0.1351316,112720.0,112710.0,0.18230354]
[1756396696184,0.1351316,112720.0,112710.0,0.18030354]
[1756396698078,0.1361316,112720.0,112710.0,0.6583605]
[1756396698987,0.1351316,112720.0,112710.0,0.6583605]
[1756396700583,0.1351316,112720.0,112710.0,0.18230354]
[1756396700788,0.1351316,112720.0,112710.0,0.6603605]
[1756396702296,0.1351316,112720.0,112710.0,0.6583605]
[1756396702497,0.1361316,112720.0,112710.0,0.6603605]
[1756396704105,0.1351316,112720.0,112710.0,0.6603605]
[1756396704995,0.1351316,112720.0,112710.0,0.16284453]
[1756396705204,0.1351316,112720.0,112710.0,0.64090149]
[1756396705505,0.1351316,112720.0,112710.0,0.63890149]
[1756396707199,0.1361316,112720.0,112710.0,0.63890149]
[1756396709402,0.1361316,112720.0,112710.0,0.07213533]
[1756396709604,0.0887091,112710.0,112700.0,1.5138197]
[1756396709797,0.1168491,112710.0,112700.0,0.95614681]
[1756396709998,0.1168491,112710.0,112700.0,1.43420377]
[1756396710699,0.61319606,112710.0,112700.0,0.00907661]
[1756396711007,0.1176169,112700.0,112690.0,1.57312407]
[1756396711507,0.0887169,112700.0,112690.0,1.57312407]
[1756396711702,0.0867169,112700.0,112690.0,1.57312407]
[1756396711899,0.1156169,112700.0,112690.0,1.57312407]
[1756396712094,0.1156169,112700.0,112690.0,1.58207654]
[1756396712302,0.0867169,112700.0,112690.0,1.58507654]
[1756396712700,0.1156169,112700.0,112690.0,1.58507654]
[1756396712904,0.1156169,112700.0,112690.0,1.50546061]
[1756396713104,0.1156169,112700.0,112690.0,1.41674181]
[1756396713402,0.1156169,112700.0,112690.0,0.93968485]
[1756396713711,0.1333469,112700.0,112690.0,0.93968485]
[1756396714008,0.1333469,112700.0,112690.0,0.08308485]
[1756396714202,0.1510438,112700.0,112690.0,0.08308485]
[1756396714402,0.1510438,112700.0,112690.0,0.08208485]
[1756396714602,0.1510438,112700.0,112690.0,0.07908485]
[1756396714803,0.1510438,112700.0,112690.0,0.001]
[1756396716006,0.1510438,112700.0,112690.0,0.07967973]
[1756396716209,0.1510438,112700.0,112690.0,0.00985255]
[1756396716612,0.1520438,112700.0,112690.0,0.00985255]
[1756396718015,0.1520438,112700.0,112690.0,0.001]
[1756396718615,0.1353548,112690.0,112680.0,0.9467476]
[1756396718819,0.1353548,112690.0,112680.0,1.42480456]
[1756396719016,0.1353548,112690.0,112680.0,0.9467476]
[1756396719218,0.1353548,112690.0,112680.0,1.42480456]
[1756396719516,0.1353548,112690.0,112680.0,0.9467476]
[1756396719710,0.1353548,112690.0,112680.0,1.42580456]
[1756396720419,0.1353548,112690.0,112680.0,1.49553146]
[1756396720615,0.1353548,112690.0,112680.0,0.08098601]
[1756396720814,0.1353548,112690.0,112680.0,0.16971871]
[1756396721321,0.1353548,112690.0,112680.0,0.64777567]
[1756396723422,0.1353548,112690.0,112680.0,0.16971871]
[1756396723720,0.1353548,112690.0,112680.0,0.64777567]
[1756396725825,0.1353548,112690.0,112680.0,0.55904297]
[1756396726016,0.1353548,112690.0,112680.0,0.64777567]
[1756396727723,0.1064548,112690.0,112680.0,0.64777567]
[1756396727924,0.1353548,112690.0,112680.0,0.64777567]
[1756396730725,0.1353548,112690.0,112680.0,0.55904297]
[1756396731024,0.1353548,112690.0,112680.0,0.64777567]
[1756396732823,0.1064548,112690.0,112680.0,0.64777567]
[1756396733324,0.1353548,112690.0,112680.0,0.16971871]
[1756396733524,0.1064548,112690.0,112680.0,0.64777567]
[1756396735319,0.1353548,112690.0,112680.0,0.64777567]
[1756396735514,0.0887248,112690.0,112680.0,0.64777567]
[1756396736026,0.1064548,112690.0,112680.0,0.64777567]
[1756396736221,0.0354269,112700.0,112690.0,0.0887248]
[1756396736421,0.0176969,112700.0,112690.0,1.42170176]
[1756396737120,0.0176969,112700.0,112690.0,1.67170176]
[1756396737524,0.0176969,112700.0,112690.0,1.1936448]
[1756396737728,0.0176969,112700.0,112680.0,0.01125911]
[1756396737729,0.04663,112690.0,112680.0,0.01125911]
[1756396738424,0.04663,112690.0,112680.0,0.01025911]
[1756396738926,0.04663,112690.0,112680.0,0.09899121]
[1756396739228,0.0663269,112700.0,112690.0,0.0887242]
[1756396739428,0.0653269,112700.0,112690.0,0.56678116]
[1756396741121,0.1540506,112700.0,112690.0,0.0887242]
[1756396741423,0.1530506,112700.0,112690.0,0.56678116]
[1756396742236,0.1540506,112700.0,112690.0,0.56678116]
[1756396742429,0.1550506,112700.0,112690.0,0.56678116]
[1756396742628,0.1540506,112700.0,112690.0,0.56678116]
[1756396742831,0.1540506,112700.0,112690.0,0.56778116]
[1756396743222,0.1530506,112700.0,112690.0,0.56778116]
[1756396744125,0.1241506,112700.0,112690.0,0.56778116]
[1756396744719,0.0176969,112700.0,112690.0,0.81778116]
[1756396752732,0.0176969,112700.0,112690.0,0.3397242]
[1756396752933,0.0176969,112700.0,112690.0,0.81778116]
[1756396762339,0.0366269,112700.0,112690.0,0.81778116]
[1756396763843,0.0176969,112700.0,112690.0,0.81778116]
[1756396764044,0.0886827,112750.0,112720.0,0.1179808]
[1756396764244,0.1076127,112750.0,112730.0,0.85268]
[1756396764438,0.58566966,112750.0,112730.0,1.35850696]
[1756396764640,0.58566966,112750.0,112720.0,0.59452166]
[1756396764839,0.49698696,112740.0,112720.0,0.9691047]
[1756396765440,0.01893,112730.0,112720.0,0.9592647]
[1756396765642,0.0366068,112730.0,112720.0,0.1066247]
[1756396765846,0.2866068,112730.0,112720.0,0.1066247]
[1756396766240,0.3129968,112730.0,112720.0,0.1066247]
[1756396766439,0.3129968,112730.0,112720.0,0.1076247]
[1756396766848,0.3129968,112730.0,112720.0,0.1066247]
[1756396767148,0.3129968,112730.0,112720.0,0.61345166]
[1756396768547,0.3129968,112730.0,112720.0,0.1353947]
[1756396768748,0.3129968,112730.0,112720.0,0.61345166]
[1756396771951,0.4016897,112730.0,112720.0,0.61345166]
[1756396772151,0.4016897,112730.0,112720.0,0.1353947]
[1756396772351,0.4016897,112730.0,112720.0,0.001]
[1756396772352,0.87974666,112730.0,112720.0,0.001]
[1756396772744,0.90337138,112730.0,112720.0,0.001]
[1756396773544,0.85805138,112730.0,112690.0,0.1346802]
[1756396773751,0.0452,112700.0,112690.0,0.65901716]
[1756396774048,0.04439791,112710.0,112700.0,0.0887168]
[1756396774253,0.06287791,112710.0,112700.0,0.61305376]
[1756396775153,0.06287791,112710.0,112700.0,0.1349968]
[1756396775355,0.06287791,112710.0,112700.0,0.61305376]
[1756396775543,0.06387791,112710.0,112700.0,0.61305376]
[1756396777053,0.06587791,112710.0,112700.0,0.61305376]
[1756396779954,0.03915791,112710.0,112700.0,0.61305376]
[1756396780150,0.12787231,112710.0,112700.0,0.61305376]
[1756396780564,0.15459231,112710.0,112700.0,0.61305376]
[1756396781963,0.10938681,112710.0,112700.0,0.61305376]
[1756396782464,0.12786681,112710.0,112700.0,0.61305376]
[1756396782860,0.10938681,112710.0,112700.0,0.61305376]
[1756396783660,0.10738681,112710.0,112700.0,0.61305376]
[1756396784464,0.10638681,112710.0,112700.0,0.61305376]
[1756396786164,0.12486681,112710.0,112700.0,0.61305376]
[1756396786559,0.03615791,112710.0,112700.0,0.61305376]
[1756396786767,0.03615791,112710.0,112700.0,0.86305376]
[1756396786768,0.01767791,112710.0,112700.0,0.86305376]
[1756396787270,0.1515717,112730.0,112720.0,0.1074411]
[1756396787468,0.1515717,112730.0,112720.0,0.61303806]
[1756396787960,0.0361568,112730.0,112720.0,0.61303806]
[1756396788265,0.0361568,112730.0,112720.0,1.11069937]
[1756396788569,0.0361568,112730.0,112720.0,0.63264241]
[1756396788767,0.0176768,112730.0,112720.0,0.63264241]
[1756396788964,0.0176768,112730.0,112720.0,1.11069937]
[1756396790671,0.0452,112740.0,112730.0,0.1349732]
[1756396790968,0.0452,112740.0,112730.0,1.46387016]
[1756396791870,0.0452,112740.0,112730.0,1.47276987]
[1756396792373,0.01848,112740.0,112730.0,1.47276987]
[1756396792573,0.01848,112740.0,112730.0,0.99471291]
[1756396792774,0.01848,112740.0,112730.0,1.47276987]
[1756396793074,0.0452,112740.0,112730.0,1.47276987]
[1756396793572,0.0452,112740.0,112730.0,0.99471291]
[1756396793768,0.0452,112740.0,112730.0,1.47276987]
[1756396795376,0.01848,112740.0,112730.0,1.47276987]
[1756396795675,0.0452,112740.0,112730.0,0.99471291]
[1756396795874,0.0452,112740.0,112730.0,1.47276987]
[1756396796078,0.1338798,112750.0,112740.0,0.1349653]
[1756396796270,0.1338798,112750.0,112740.0,0.20680465]
[1756396796671,0.1338798,112750.0,112740.0,0.11811935]
[1756396796867,0.1338798,112750.0,112740.0,0.04628]
[1756396797576,0.1348798,112750.0,112740.0,0.04628]
[1756396800584,0.1348798,112750.0,112740.0,0.01874]
[1756396800784,0.3581598,112750.0,112720.0,0.11181414]
[1756396800984,0.01948,112750.0,112720.0,0.11181414]
[1756396801779,0.01948,112750.0,112680.0,0.20923484]
[1756396801780,0.01948,112750.0,112680.0,0.00158]
[1756396802286,0.01948,112750.0,112740.0,0.01758]
[1756396802481,0.04679,112750.0,112740.0,0.04296]
[1756396802677,0.01948,112750.0,112740.0,0.1316456]
[1756396802876,0.01848,112750.0,112740.0,0.1316456]
[1756396803175,0.001,112750.0,112740.0,0.1316456]
[1756396803577,0.04472301,112760.0,112750.0,0.1062577]
[1756396803781,0.04472301,112760.0,112750.0,0.1316377]
[1756396803969,0.01741301,112760.0,112750.0,0.1316377]
[1756396804476,0.00013301,112760.0,112750.0,0.1316377]
[1756396804676,0.00013301,112760.0,112750.0,1.1479177]
[1756396804881,0.04459,112790.0,112780.0,0.1062338]
[1756396805076,0.04459,112790.0,112780.0,0.1316138]
[1756396805477,0.04459,112790.0,112780.0,0.04296]
[1756396805676,0.1332363,112790.0,112780.0,0.04296]
[1756396805883,0.1332363,112790.0,112780.0,0.1316141]
[1756396806285,0.1332363,112790.0,112780.0,0.04296]
[1756396806484,0.1342363,112790.0,112780.0,0.04296]
[1756396807584,0.1342363,112790.0,112780.0,0.1316139]
[1756396808082,0.1342363,112790.0,112780.0,0.04296]
[1756396810185,0.1342363,112790.0,112780.0,0.1316139]
[1756396810486,0.1342363,112790.0,112770.0,0.02551301]
[1756396810487,0.29559,112790.0,112770.0,0.02551301]
[1756396810784,0.04459,112780.0,112770.0,0.13175461]
[1756396810983,0.04459,112780.0,112770.0,0.04309301]
[1756396811186,0.04459,112780.0,112770.0,0.00013301]
[1756396811379,0.04459,112780.0,112770.0,0.01771301]
[1756396812588,0.04559,112780.0,112770.0,0.01771301]
[1756396812990,0.04559,112780.0,112770.0,0.10637481]
[1756396813288,0.04559,112780.0,112770.0,0.13175481]
[1756396815494,0.04559,112780.0,112770.0,0.04309301]
[1756396815689,0.04559,112780.0,112770.0,0.01771301]
[1756396816193,0.1342439,112780.0,112770.0,0.01771301]
[1756396816791,0.1342439,112780.0,112770.0,0.00013301]
[1756396817492,0.1342439,112780.0,112770.0,0.01771301]
[1756396818489,0.1342439,112780.0,112770.0,0.13175481]
[1756396818686,0.04559,112780.0,112770.0,0.13175481]
[1756396819493,0.001,112780.0,112770.0,0.38175481]
[1756396819789,0.01828,112780.0,112770.0,0.38175481]
[1756396820096,0.02731,112790.0,112780.0,0.0886539]
[1756396820392,0.02731,112790.0,112780.0,0.1316139]
[1756396820393,0.04459,112790.0,112780.0,0.1316139]
[1756396822188,0.04459,112790.0,112780.0,0.04296]
[1756396822894,0.04559,112790.0,112780.0,0.01758]
[1756396823093,0.04559,112790.0,112780.0,0.1316139]
[1756396823497,0.04559,112790.0,112780.0,0.14053462]
[1756396824491,0.01828,112790.0,112780.0,0.14053462]
[1756396824794,0.001,112790.0,112780.0,0.14053462]
[1756396825996,0.01828,112790.0,112780.0,0.14053462]
[1756396827103,0.001,112790.0,112780.0,0.14053462]
[1756396827400,0.06259418,112820.0,112810.0,0.1315903]
[1756396831806,0.06259418,112820.0,112810.0,0.20078308]
[1756396832517,0.40121668,112820.0,112810.0,0.08677278]
[1756396832811,0.40121668,112820.0,112810.0,0.17540308]
[1756396833008,0.40121668,112820.0,112810.0,0.15782308]
[1756396834413,0.31259418,112820.0,112810.0,0.15782308]
[1756396834808,0.31259418,112820.0,112810.0,0.17542308]